[Event "MCCT Chessable Masters 2022"]
[Site "Online"]
[Date "2022.05.16"]
[Round "11.5"]
[White "Van Foreest, Jorden"]
[Black "Grandelius, Nils"]
[Result "0-1"]
[ECO "A06"]
[WhiteElo "2715"]
[BlackElo "2635"]
[Annotator "TA"]
[PlyCount "156"]
[EventDate "2022.05.19"]
[EventType "tourn"]
[EventCountry "NET"]
[SourceTitle "playchess.com"]
[Source "ChessBase"]
[SourceQuality "1"]
[TimeControl "900+10"]

{[%evp 9,156,4,9,2,0,14,15,-18,0,-25,-21,-37,-40,-46,-24,-43,-47,-48,-46,-53,-37,-116,-112,-115,-114,-108,-108,-116,-109,-110,-112,-113,-131,-126,-114,-147,-149,-152,-120,-155,-131,-153,-121,-145,-142,-156,-124,-129,-139,-157,-149,-145,-79,-180,-185,-183,-180,-191,-191,-189,-191,-191,-192,-191,-190,-191,-189,-191,-181,-194,-194,-194,-194,-200,-200,-200,-200,-200,-200,-200,-200,-200,-200,-200,-200,-200,-200,-200,-200,-200,-200,-200,-200,-200,-200,-200,-200,-200,-200,-200,-200,-200,-91,-83,-26,-37,-26,-26,-26,-84,-84,-84,-84,-187,-187,-226,-101,-97,-99,-142,-43,-649,-296,-5423,-5423,-5423,-5423,-5397,-5365,-5397,-5397,-5397,-5372,-5365,-5365,-12799,-5282,-11923,-4357,-5135,-4587,-12799,-12799,-12643,-11300,-8097,-8097,-4215,-4215]} 1. Nf3 {[%emt 0:00:00]} Nf6 {[%emt 0:00:00]} 2. b3 {[%emt 0:00:32]} d5 {[%emt 0:00:41]} 3. Bb2 {[%emt 0:00:01]} Bg4 {[%emt 0:00:18]} 4. e3 {[%emt 0:00:06]} e6 {[%emt 0:00:13]} 5. h3 {[%emt 0:00:04]} Bh5 {[%emt 0:00:02]} 6. Nc3 {[%emt 0:00:11] A06: Réti Opening: 1 Nf3 d5.} Nbd7 {[%emt 0:01:03]} 7. g4 {[%emt 0:00:24]} Bg6 {[%emt 0:00:02]} 8. d3 {[%emt 0:00:25] [#] The position is equal.} Bd6 $146 {[%emt 0:00:13]} ({Predecessor:} 8... c6 9. g5 Ng8 10. h4 e5 11. Bh3 Bh5 12. O-O Bd6 13. Na4 g6 14. e4 d4 {0-1 (56) Dean,W-Berry,J IECC email 1996}) 9. h4 {[%emt 0:00:10]} Nxg4 {[%emt 0:02:08] Hoping for ...Bh5.} 10. h5 {[%emt 0:00:20]} Bf5 {[%emt 0:00:07]} 11. Nd4 {[%emt 0:03:07]} Qf6 $36 {[%emt 0:03:13][%mdl 2048] Black has the initiative.} 12. Qe2 {[%emt 0:00:57]} Be5 $1 {[%emt 0:00:32]} 13. O-O-O {[%emt 0:01:29]} Bxd4 {[%emt 0:00:37]} 14. exd4 {[%emt 0:00:04]} Qxd4 {[%emt 0:00:01]} 15. f3 {[%emt 0:02:33]} (15. Bh3 $1 $15 Qf4+ 16. Kb1) 15... Qe3+ $17 {[%emt 0:01:10]} 16. Rd2 {[%emt 0:00:53]} Qxe2 {[%emt 0:00:39]} 17. Rxe2 {[%emt 0:00:02]} Ngf6 {[%emt 0:00:05]} 18. h6 {[%emt 0:00:01]} O-O-O {[%emt 0:00:31]} 19. hxg7 {[%emt 0:00:01]} Rhg8 {[%emt 0:00:00]} 20. Rg2 {[%emt 0:00:00]} Bg6 {[%emt 0:01:14]} 21. f4 {[%emt 0:00:02]} Ne8 {[%emt 0:00:10][%cal Bf6e8,Be8g7,Bg7f5,Bf5g3][%mdl 32]} 22. Nb5 {[%emt 0:03:51]} ({Avoid the trap} 22. f5 $2 Bxf5 23. Rg5 Bg6 $19) 22... a6 {[%emt 0:00:41]} ({Worse is} 22... Nxg7 23. Nxa7+ Kb8 24. Nb5 $15) 23. Nd4 {[%emt 0:00:01]} Nxg7 {[%emt 0:00:15]} 24. Rgh2 {[%emt 0:00:06]} Rde8 {[%emt 0:02:35]} 25. Nf3 {[%emt 0:00:11]} f6 {[%emt 0:00:34]} 26. Be2 {[%emt 0:00:40]} Nf5 {[%emt 0:00:11]} 27. Rh3 {[%emt 0:00:05]} e5 {[%emt 0:00:10]} 28. fxe5 {[%emt 0:00:05]} fxe5 {[%emt 0:00:07]} 29. Ng5 {[%emt 0:00:02]} h6 {[%emt 0:00:06]} 30. Nf3 {[%emt 0:00:05]} Bh7 {[%emt 0:00:36]} (30... Bf7 $142 $1 31. Re1 h5) 31. Bc3 {[%emt 0:01:05]} (31. Bd1 $17) 31... Ng3 $1 $19 {[%emt 0:00:29]} 32. R1h2 {[%emt 0:00:24]} Bf5 {[%emt 0:00:16][%cal Bh7f5,Bf5g4,Bg4f3][%mdl 32]} 33. Rxh6 {[%emt 0:00:50]} Nxe2+ {[%emt 0:00:02]} 34. Rxe2 {[%emt 0:00:00][%cal Rf3e5]} Bg4 {[%emt 0:00:00]} 35. Re3 {[%emt 0:00:32][%cal Rf3e5]} d4 {[%emt 0:00:32]} 36. Nxd4 {[%emt 0:00:01]} exd4 {[%emt 0:00:01]} 37. Rxe8+ {[%emt 0:00:00]} Rxe8 {[%emt 0:00:02]} 38. Bxd4 {[%emt 0:00:00]} b6 {[%emt 0:00:07]} 39. Rg6 {[%emt 0:00:04]} Bf3 {[%emt 0:00:06]} 40. Rg3 {[%emt 0:00:02]} Bc6 {[%emt 0:00:05]} 41. a4 {[%emt 0:00:02]} Kb7 {[%emt 0:00:01]} 42. Re3 {[%emt 0:00:05]} Rxe3 {[%emt 0:00:40]} 43. Bxe3 {[%emt 0:00:00]} Nf6 {[%emt 0:00:00]} 44. Kb2 {[%emt 0:00:02]} Bf3 {[%emt 0:00:06]} 45. Bd4 {[%emt 0:00:02]} Nd5 {[%emt 0:00:02]} 46. Kc1 {[%emt 0:00:04]} Kc6 {[%emt 0:00:12]} 47. Kd2 {[%emt 0:00:01]} Bh5 {[%emt 0:00:08]} 48. Bf2 {[%emt 0:00:01]} Nf4 {[%emt 0:00:41]} 49. Bg3 {[%emt 0:00:02]} Ne6 {[%emt 0:00:00]} 50. Bf2 {[%emt 0:00:02]} Kd5 {[%emt 0:00:01]} 51. Bg3 {[%emt 0:00:01]} Kc5 {[%emt 0:00:12]} 52. Kc3 {[%emt 0:00:03]} Bg4 {[%emt 0:00:09]} 53. Bf2+ {[%emt 0:00:01]} Kd5 {[%emt 0:00:01]} 54. Bg3 {[%emt 0:00:00]} c6 {[%emt 0:00:44]} 55. Bf2 {[%emt 0:00:03]} b5 {[%emt 0:01:01]} (55... c5 $19 56. Be3 Nd4) 56. axb5 $17 {[%emt 0:00:00]} cxb5 {[%emt 0:00:01]} (56... axb5 $17 {White must now prevent ...Bh5.} 57. Kb4 Kd6) 57. Kb4 $1 $11 {[%emt 0:00:05]} Bd1 {[%emt 0:00:28]} 58. c4+ {[%emt 0:00:03]} Kc6 {[%emt 0:00:01]} 59. d4 {[%emt 0:00:01]} (59. Ka5 $1 $11 {remains equal.}) 59... Nf4 $17 {[%emt 0:00:06]} 60. d5+ {[%emt 0:00:01]} Kb7 $1 {[%emt 0:00:09]} 61. Be3 {[%emt 0:00:24] [#]} (61. Bg1 $17) 61... Nd3+ $1 $19 {[%emt 0:00:11]} 62. Kc3 {[%emt 0:00:01]} Ne5 {[%emt 0:00:02]} (62... Be2 $19 {has better winning chances. aiming for ...b4+.} 63. Kd4 Kc7) 63. Bd4 $17 {[%emt 0:00:06]} Nf3 {[%emt 0:00:27]} 64. Be3 {[%emt 0:00:01] [#]} Nh4 {[%emt 0:00:12]} (64... a5 $1 $17 {And now ...b4+ would win.} 65. cxb5 Be2) 65. c5 $2 {[%emt 0:00:01][%mdl 8192] This move loses the game for White.} (65. Bg5 $15) 65... Bf3 {[%emt 0:00:05]} (65... Nf5 $142 66. Bg5 Bf3) 66. c6+ $2 {[%emt 0:00:05]} (66. d6 Nf5 67. Bg5) 66... Kc8 $19 {[%emt 0:00:04] Black is clearly winning.} 67. Kb4 {[%emt 0:00:59]} Nf5 {[%emt 0:00:07]} 68. Bf4 {[%emt 0:00:12]} Bxd5 {[%emt 0:00:08]} 69. Ka5 {[%emt 0:00:01]} Bxc6 {[%emt 0:00:21] ...Kb7 is the strong threat.} 70. Kxa6 {[%emt 0:00:00]} Nd4 {[%emt 0:00:04]} 71. Kb6 {[%emt 0:00:28]} Bd7 {[%emt 0:00:12]} 72. b4 {[%emt 0:00:09]} Kd8 {[%emt 0:00:06]} 73. Be3 {[%emt 0:00:06]} Nc2 {[%emt 0:00:04]} 74. Bc5 {[%emt 0:00:07]} Ne1 {[%emt 0:00:05] Threatens to win with ...Nd3.} 75. Bd6 {[%emt 0:00:47]} Nd3 {[%emt 0:00:06]} 76. Kb7 {[%emt 0:00:05]} Be8 {[%emt 0:00:22]} 77. Bf8 {[%emt 0:00:53]} Kd7 {[%emt 0:00:07]} 78. Kb6 {[%emt 0:01:34]} Ke6 {[%emt 0:00:02] Weighted Error Value: White=0.10 (very precise) /Black=0.08 (flawless)} 0-1

[Event "MCCT Chessable Masters 2022"]
[Site "Online"]
[Date "2022.05.16"]
[Round "11.6"]
[White "Mishra, Abhimanyu"]
[Black "Tari, Aryan"]
[Result "0-1"]
[ECO "B12"]
[WhiteElo "2535"]
[BlackElo "2654"]
[Annotator "TA"]
[PlyCount "88"]
[EventDate "2022.05.19"]
[EventType "tourn"]
[EventCountry "NET"]
[SourceTitle "playchess.com"]
[Source "ChessBase"]
[SourceQuality "1"]
[TimeControl "900+10"]

{[%evp 10,88,19,10,14,31,31,17,35,39,29,39,50,-39,-43,-49,0,-32,-24,-50,0,20,4,-29,-53,-31,0,-55,-65,-54,-57,-64,-54,-64,0,-58,-27,-18,-45,-44,-27,-55,-37,-34,-43,-45,0,0,0,-25,-50,-44,-39,-368,-369,-1046,-1039,-1000,-968,-968,-934,-899,-797,-1058,-782,-939,-763,-737,-733,-717,-711,-670,-662,-995,-982,-966,-958,-943,-927,-844,-822]} 1. e4 {[%emt 0:00:00]} c6 {[%emt 0:00:00]} 2. d4 {[%emt 0:00:03]} d5 {[%emt 0:00:03]} 3. e5 {[%emt 0:00:02]} Bf5 {[%emt 0:00:16]} 4. Nd2 {[%emt 0:00:02]} e6 {[%emt 0:00:04]} 5. Nb3 {[%emt 0:00:03]} Nd7 {[%emt 0:00:00]} 6. Nf3 {[%emt 0:00:02]} Qc7 {[%emt 0:00:02] B12: Caro-Kann: Advance Variation.} 7. Be2 {[%emt 0:00:01]} f6 {[%emt 0:00:02][%cal Rf6e5]} 8. O-O {[%emt 0:03:45] Nowadays more popular than 8.Bf4.} fxe5 {[%emt 0:00:04] The position is equal.} 9. dxe5 {[%emt 0:00:10]} Nxe5 {[%emt 0:00:07]} 10. Nfd4 {[%emt 0:01:12] [#]} Nf6 $146 {[%emt 0:00:04] Inhibits g4.} ({Predecessor:} 10... Bd6 11. g4 Bg6 12. f4 Nc4 13. Nxe6 Qb6+ 14. Nbd4 Bc5 15. Bxc4 Bxd4+ 16. Nxd4 dxc4 {1-0 (25) Zinchenko,Y (2547)-Elizarov,D (2356) Voronezh 2010}) 11. Bg5 {[%emt 0:02:04]} (11. f4 $14 Nc4 12. g4 (12. Nxf5 exf5 13. Bxc4 dxc4 $15)) 11... Ne4 {[%emt 0:02:14]} 12. Be3 {[%emt 0:00:33]} Bd6 {[%emt 0:01:37][%cal Oh7h5]} (12... h5 $5 {[%cal Re5g4]} 13. Nxf5 exf5 $15) 13. g4 {[%emt 0:01:21]} Bg6 {[%emt 0:00:08] White must now prevent ...Bf7.} 14. f4 {[%emt 0:01:22] [#]} Bf7 {[%emt 0:03:39]} 15. fxe5 $11 {[%emt 0:01:08]} Bxe5 {[%emt 0:00:00]} 16. Rf3 {[%emt 0:00:45]} Bxh2+ {[%emt 0:00:37]} 17. Kg2 $1 {[%emt 0:00:15]} Be5 {[%emt 0:01:10]} 18. Qf1 {[%emt 0:01:08]} ({White should play} 18. Bd3 $11) 18... O-O $15 {[%emt 0:00:53] aiming for ...c5.} 19. Bd3 {[%emt 0:00:35]} Qe7 {[%emt 0:02:18]} 20. Bxe4 {[%emt 0:01:10]} dxe4 {[%emt 0:00:00] Really sharp!} (20... Qh4 21. Bxh7+ $1 Qxh7 22. Qh1 $16 (22. Bf4 $2 Bxf4 23. Qh1 Qxh1+ 24. Rxh1 e5 $19)) 21. Rh3 {[%emt 0:00:09]} c5 $1 {[%emt 0:00:40][%mdl 1024] Black has compensation.} 22. Ne2 {[%emt 0:00:47]} ({White should try} 22. Nb5 $1 $11) 22... Bg6 {[%emt 0:00:23] A strong pair of Bishops.} (22... Bh5 $5 23. Rxh5 (23. Bxc5 $2 Qg5 $19) 23... Rxf1 24. Rxf1 Bxb2 25. Bxc5 Qc7 $17) 23. Qe1 {[%emt 0:00:21]} ({But not} 23. Bxc5 $2 Qg5 24. Qe1 (24. Bxf8 $2 Rxf8 25. Qe1 Qxg4+ 26. Rg3 Bxg3 $19) 24... Qxg4+ 25. Rg3 Bxg3 26. Nxg3 h5 $1 27. Bxf8 Rxf8 $19) 23... Rf3 {[%emt 0:00:50]} 24. Ng1 {[%emt 0:01:11]} Rf7 {[%emt 0:00:27]} 25. Qe2 {[%emt 0:00:38]} b6 {[%emt 0:00:19]} 26. c3 {[%emt 0:00:13]} Raf8 {[%emt 0:00:13]} 27. Nd2 {[%emt 0:00:07]} Bf4 {[%emt 0:00:24]} 28. Bxf4 {[%emt 0:00:25]} Rxf4 {[%emt 0:00:00]} 29. Rf1 {[%emt 0:00:10]} e5 $1 {[%emt 0:00:01]} 30. Rg3 {[%emt 0:00:11]} Qb7 {[%emt 0:01:22] And now ...e3+ would win.} 31. Qe3 $2 {[%emt 0:00:13][%mdl 8192] [#] Now White is beyond hope.} (31. Nh3 $15) 31... Rd8 $1 $19 {[%emt 0:00:05][%cal Bf8d8,Bd8d2,Bd2b2,Bb2a2,Ba2c2,Bc2g2,Bg2g4][%mdl 32]} 32. Nh3 $2 {[%emt 0:00:11] [#]} (32. c4 Rd3 33. Qe1 e3+ 34. Ndf3) 32... Rxd2+ $1 {[%emt 0:00:04][%mdl 512] Black is clearly winning.} 33. Kg1 {[%emt 0:00:04]} Rxf1+ {[%emt 0:00:21]} 34. Kxf1 {[%emt 0:00:01]} Qd7 {[%emt 0:00:02] Strongly threatening ...Rd3.} 35. Nf2 {[%emt 0:00:08] Inhibits Rd3.} Rxb2 {[%emt 0:00:06]} 36. Rg1 {[%emt 0:00:09]} Qd2 {[%emt 0:00:04]} 37. Rg3 {[%emt 0:00:23]} Qxe3 {[%emt 0:00:04]} 38. Rxe3 {[%emt 0:00:00]} Rxa2 {[%emt 0:00:01]} 39. Nxe4 {[%emt 0:00:05]} Bxe4 {[%emt 0:00:02]} 40. Rxe4 {[%emt 0:00:00] KR-KR} Rc2 {[%emt 0:00:06]} 41. c4 {[%emt 0:00:06]} h6 {[%emt 0:00:02]} 42. Ke1 {[%emt 0:00:07]} a5 {[%emt 0:00:01]} 43. Kd1 {[%emt 0:00:01]} Rg2 {[%emt 0:00:01]} 44. Rxe5 {[%emt 0:00:06]} Rxg4 {[%emt 0:00:01] Weighted Error Value: White=0.57/Black=0.20 (precise)} 0-1

[Event "MCCT Chessable Masters 2022"]
[Site "Online"]
[Date "2022.05.16"]
[Round "11.7"]
[White "Shankland, Sam"]
[Black "Giri, Anish"]
[Result "1/2-1/2"]
[ECO "D32"]
[WhiteElo "2718"]
[BlackElo "2761"]
[Annotator "TA"]
[PlyCount "102"]
[EventDate "2022.05.19"]
[EventType "tourn"]
[EventCountry "NET"]
[SourceTitle "playchess.com"]
[Source "ChessBase"]
[SourceQuality "1"]
[TimeControl "900+10"]

{[%evp 16,102,17,12,24,0,0,0,19,0,2,8,15,15,20,5,0,0,14,0,0,0,23,0,0,8,13,9,13,8,56,50,63,60,67,34,34,31,29,32,75,75,70,72,72,67,66,37,99,58,63,63,78,63,66,63,62,62,69,53,64,60,66,46,72,68,58,37,28,23,49,6,14,8,8,8,65,22,18,0,0,0,0,0,0,0,0,0,0]} 1. c4 {[%emt 0:00:00]} Nf6 {[%emt 0:00:00]} 2. Nc3 {[%emt 0:00:03]} c5 {[%emt 0:00:04]} 3. Nf3 {[%emt 0:00:01]} e6 {[%emt 0:00:02]} 4. e3 {[%emt 0:00:26]} Nc6 {[%emt 0:00:02]} 5. d4 {[%emt 0:00:04]} d5 {[%emt 0:00:01]} 6. cxd5 {[%emt 0:00:02]} exd5 {[%emt 0:00:01]} 7. Bb5 {[%emt 0:00:02]} cxd4 $1 {[%emt 0:00:00][%mdl 4] is more profitable than 7...Bd6 at the moment.} 8. Nxd4 {[%emt 0:00:01]} Bd7 {[%emt 0:00:02]} 9. O-O {[%emt 0:00:01]} Bd6 {[%emt 0:00:08] D32: Tarrasch Defence: Sidelines and lines without g3.} 10. Nf3 {[%emt 0:00:03]} Bg4 {[%emt 0:00:15]} 11. h3 {[%emt 0:00:05]} Bh5 {[%emt 0:00:01]} 12. Be2 {[%emt 0:00:07]} O-O {[%emt 0:00:25]} 13. b3 {[%emt 0:00:01]} (13. Nxd5 $2 Nxd5 14. Qb3 Qd7 $1 $19) 13... a6 {[%emt 0:00:40]} 14. Bb2 {[%emt 0:00:04]} (14. Nxd5 $2 Nxd5 15. Bb2 Re8 $1 $19) 14... Re8 {[%emt 0:00:01]} 15. Rc1 {[%emt 0:00:02]} ({Don't go for} 15. Nxd5 $2 Nxd5 16. Rc1 (16. Qxd5 $2 Bh2+ 17. Kxh2 Qxd5 $19) (16. g4 $2 Bg6 $19) 16... Bg6 $1 $19) 15... Bc7 {[%emt 0:01:19] [#]} 16. Nh4 $146 {[%emt 0:02:35]} ({Predecessor:} 16. Ba3 Rc8 17. Nd4 Nxd4 18. Bxh5 Ne6 19. Bg4 Nxg4 20. Qxg4 Be5 21. Na4 Rxc1 22. Rxc1 {½-½ (34) Alekseev,E (2629)-Erenberg,A (2463) Douglas 2019}) 16... Bg6 {[%emt 0:00:02]} 17. Nxg6 {[%emt 0:01:38]} hxg6 {[%emt 0:00:00]} 18. Bf3 {[%emt 0:00:01][%cal Rc3d5]} Be5 {[%emt 0:06:31]} (18... Qd6 $5 19. g3 {[#]} Rxe3 $1 $11) 19. Na4 {[%emt 0:01:24][%cal Bc3a4,Ba4b2,Bb2d3,Bd3f4][%mdl 32]} Bxb2 {[%emt 0:00:29]} 20. Nxb2 {[%emt 0:00:00]} Qd6 {[%emt 0:00:32]} 21. Nd3 {[%emt 0:00:36]} Rad8 {[%emt 0:00:43]} 22. Qc2 {[%emt 0:00:14]} Rc8 {[%emt 0:01:44]} (22... Qe7 $11) 23. Qb2 {[%emt 0:00:35]} Ne7 {[%emt 0:00:21]} 24. Nf4 {[%emt 0:00:34]} g5 {[%emt 0:00:43]} 25. Ne2 {[%emt 0:00:31] White is more active.} Ng6 {[%emt 0:00:09]} 26. Nd4 {[%emt 0:00:40]} Ne5 {[%emt 0:00:02] And now ...Nd3 would win.} 27. Be2 {[%emt 0:00:56] Inhibits Nd3.} g6 {[%emt 0:00:02]} 28. Nf3 {[%emt 0:00:42]} Nxf3+ {[%emt 0:00:15]} 29. Bxf3 {[%emt 0:00:01]} Ne4 {[%emt 0:01:12]} 30. Qd4 {[%emt 0:00:55] Hoping for Rxc8.} Rc6 {[%emt 0:01:22]} 31. Rxc6 {[%emt 0:01:06]} bxc6 {[%emt 0:00:24]} ({Black should play} 31... Qxc6 $14 32. Qd3 Kg7) 32. Rc1 {[%emt 0:00:13]} c5 {[%emt 0:00:24]} 33. Qa4 {[%emt 0:00:47]} Nf6 {[%emt 0:00:57]} 34. Qa5 {[%emt 0:00:48]} Rc8 {[%emt 0:00:02]} 35. Rd1 {[%emt 0:00:36][%cal Of3d5]} Qe6 {[%emt 0:00:21]} 36. Qd2 {[%emt 0:01:22][%cal Rf3d5]} Rd8 {[%emt 0:00:46]} 37. Rc1 {[%emt 0:00:41]} Qd6 {[%emt 0:00:22]} 38. Qd3 {[%emt 0:00:52]} Rc8 {[%emt 0:00:28]} 39. g3 {[%emt 0:00:39]} Rc7 {[%emt 0:00:21]} 40. Kg2 {[%emt 0:00:09]} Qe6 {[%emt 0:00:03]} 41. b4 {[%emt 0:00:31]} c4 {[%emt 0:00:01]} 42. Qd4 {[%emt 0:00:01]} Ne4 {[%emt 0:00:10]} 43. Bxe4 {[%emt 0:00:39]} (43. a4 {with more complications.} c3 44. Be2 Qc6 45. Bd3) 43... Qxe4+ {[%emt 0:00:02]} 44. Qxe4 {[%emt 0:00:01]} dxe4 $14 {[%emt 0:00:00][%mdl 4096] Endgame KR-KR} 45. Kf1 {[%emt 0:00:00]} f5 {[%emt 0:00:39]} (45... c3 $11) 46. Ke2 {[%emt 0:00:04]} c3 {[%emt 0:00:05] The position is equal.} 47. a4 {[%emt 0:01:05]} Rc4 {[%emt 0:00:08]} 48. b5 {[%emt 0:00:01]} Rxa4 {[%emt 0:00:07]} 49. bxa6 {[%emt 0:00:01]} Rxa6 {[%emt 0:00:03]} 50. Rxc3 {[%emt 0:00:00]} Kf7 {[%emt 0:00:02]} 51. Kf1 {[%emt 0:00:04]} Kf6 {[%emt 0:00:01] Weighted Error Value: White=0.09 (flawless) /Black=0.10 (very precise)} 1/2-1/2

[Event "MCCT Chessable Masters 2022"]
[Site "Online"]
[Date "2022.05.16"]
[Round "11.8"]
[White "Vidit, Santosh Gujrathi"]
[Black "Wei, Yi"]
[Result "1-0"]
[ECO "B90"]
[WhiteElo "2723"]
[BlackElo "2727"]
[Annotator "TA"]
[PlyCount "99"]
[EventDate "2022.05.19"]
[EventType "tourn"]
[EventCountry "NET"]
[SourceTitle "playchess.com"]
[Source "ChessBase"]
[SourceQuality "1"]
[TimeControl "900+10"]

{[%evp 9,99,21,26,12,12,18,11,0,0,0,-16,0,0,0,0,0,0,0,23,26,53,31,58,59,93,98,96,93,129,102,107,54,54,67,63,54,68,70,60,58,125,130,181,174,170,113,113,113,113,113,113,113,113,113,114,105,111,113,115,116,126,116,272,74,74,0,26,16,21,28,52,52,66,59,70,77,134,163,461,456,445,427,345,318,8138,6602,5604,4225,29960,29964,29972,29970]} 1. e4 {[%emt 0:00:00]} c5 {[%emt 0:00:00]} 2. Nf3 {[%emt 0:00:03]} d6 {[%emt 0:00:03]} 3. d4 {[%emt 0:00:02]} cxd4 {[%emt 0:00:01]} 4. Nxd4 {[%emt 0:00:01]} Nf6 {[%emt 0:00:00]} 5. Nc3 {[%emt 0:00:01]} a6 {[%emt 0:00:01]} 6. Qd3 {[%emt 0:00:03] B90: Sicilian Najdorf: Unusual White 6th moves, 6 Be3 Ng4 and 6 Be3 e5.} Nbd7 {[%emt 0:00:09]} 7. Be2 {[%emt 0:00:40]} b5 {[%emt 0:03:17] is now debated instead of 7...g6.} 8. Nd5 {[%emt 0:00:15] The position is equal.} Bb7 {[%emt 0:01:17] Against Nc6} 9. a4 $1 {[%emt 0:00:03]} Nc5 {[%emt 0:01:42]} 10. Nxf6+ {[%emt 0:00:03]} gxf6 {[%emt 0:00:02]} 11. Qe3 {[%emt 0:00:03]} bxa4 {[%emt 0:00:14]} 12. f3 {[%emt 0:00:02] [#]} h5 $146 {[%emt 0:00:14]} ({Predecessor:} 12... e5 13. Nf5 d5 14. exd5 Qxd5 15. Qf2 e4 16. Ne3 Qc6 17. O-O O-O-O 18. Nc4 Qe6 {1-0 (30) Vidit,S (2727)-Shirov,A (2704) Belgrade 2022}) 13. Qf2 {[%emt 0:00:12]} e6 {[%emt 0:02:19][%cal Of6f5]} 14. O-O {[%emt 0:00:26]} Qb6 {[%emt 0:00:09]} 15. b3 {[%emt 0:02:48]} axb3 {[%emt 0:00:02]} 16. Nxb3 {[%emt 0:00:29]} Bh6 {[%emt 0:00:31] Prevents Bf4.} 17. Bxh6 {[%emt 0:00:20]} Rxh6 {[%emt 0:00:01]} 18. Rfb1 {[%emt 0:01:01]} Qc7 {[%emt 0:00:02]} 19. Nxc5 {[%emt 0:00:29]} dxc5 {[%emt 0:00:01]} 20. Qg3 {[%emt 0:00:26]} ({White should try} 20. Rb3 $16) 20... Qxg3 $14 {[%emt 0:02:01]} 21. hxg3 {[%emt 0:00:00]} Bc8 {[%emt 0:02:08]} 22. Ra5 {[%emt 0:00:46]} h4 {[%emt 0:00:09]} 23. gxh4 {[%emt 0:00:16]} ({But not} 23. Rxc5 hxg3 24. Rc7 Rh4 $11) 23... Rxh4 {[%emt 0:00:09]} 24. Rxc5 {[%emt 0:00:06]} a5 {[%emt 0:01:57]} (24... f5 $14) 25. Rc7 $16 {[%emt 0:02:07]} Rh7 {[%emt 0:00:37]} (25... Kf8 $16 26. Bb5 Ba6) 26. Bb5+ $18 {[%emt 0:03:47]} Kd8 {[%emt 0:00:01]} 27. Rc5 {[%emt 0:00:12]} (27. Rc6 $1 $18 {Strongly threatening Rd1+.} f5 28. Rd1+ Ke7 29. Rc7+ Kf6 30. Rd8) 27... Ra7 {[%emt 0:01:27]} 28. Rd1+ {[%emt 0:00:51]} Bd7 {[%emt 0:00:01]} 29. Bxd7 {[%emt 0:00:30] White is much more active.} Rxd7 {[%emt 0:00:01]} 30. Rxd7+ {[%emt 0:00:04]} Kxd7 {[%emt 0:00:01]} 31. Rxa5 $16 {[%emt 0:00:00][%mdl 4096] Endgame KR-KR} Kd6 {[%emt 0:00:05]} 32. Ra7 {[%emt 0:00:11]} Ke5 {[%emt 0:00:22]} 33. Kf2 {[%emt 0:00:11]} f5 {[%emt 0:00:56]} 34. Ra5+ {[%emt 0:01:10]} Kf6 {[%emt 0:00:01]} 35. exf5 {[%emt 0:00:01]} e5 {[%emt 0:00:01]} (35... exf5 $16 {was called for.} 36. Ra4 Rh1) 36. Ke3 $2 {[%emt 0:01:07]} (36. c4 $18 {is the precise move to win.}) 36... Rh2 {[%emt 0:00:01]} 37. Kf2 {[%emt 0:01:53]} (37. g4 $16 {Hoping for c4.} Rxc2 38. Ra6+ Kg5 39. Ra8) 37... Kxf5 {[%emt 0:00:03]} 38. Ra1 {[%emt 0:00:35]} Ke6 {[%emt 0:00:50]} 39. Ra6+ {[%emt 0:00:12]} Kf5 {[%emt 0:00:06]} 40. c4 {[%emt 0:00:08]} Rh1 {[%emt 0:00:16]} 41. Ke3 $1 {[%emt 0:00:11] Black must now prevent g4+.} Rc1 {[%emt 0:00:20]} 42. Kd3 {[%emt 0:00:11] Prevents Rc3+.} Kg5 {[%emt 0:00:13] [#]} (42... f6 $142) 43. Ra2 $1 {[%emt 0:00:04]} Kf5 $2 {[%emt 0:00:18] [#]} (43... Kf6 {was worth a try.} 44. g4 Rf1) 44. Rc2 $1 $18 {[%emt 0:00:02]} Rd1+ {[%emt 0:00:04]} 45. Ke3 {[%emt 0:00:02] Threatens to win with c5.} Ke6 {[%emt 0:00:11]} 46. c5 {[%emt 0:00:03][%cal Bc4c5,Bc5c6,Bc6c7][%mdl 32]} Rd8 $2 {[%emt 0:00:15]} (46... Kd7 47. Ke4 Re1+ 48. Kd5 e4 49. fxe4 Rd1+ 50. Ke5 Kc6) 47. g4 {[%emt 0:00:28] And now c6 would win.} Rc8 {[%emt 0:00:09]} 48. c6 {[%emt 0:00:03]} Kd5 {[%emt 0:00:11]} 49. c7 {[%emt 0:00:09]} f6 {[%emt 0:00:13]} 50. Rc1 {[%emt 0:00:06] Weighted Error Value: White=0.16 (very precise) /Black=0.41} 1-0